{"text_format":"1","workbook":"xlsx","n_sheets":9,"sheets":["Bearbeitungshinweise","Eingabemaske","Berech_Planungsgaran_vorjahr","Eingabe aktuelle Daten","Ermittlung_Zuschuss_mindestbese","Personalbesetzung_Ist","Daten GuV","Auswertung","Auswahl"],"not_rendered":{"charts":0,"images":2,"macros":1,"external_links":0,"defined_names":6,"comments":3,"pivot_tables":0},"unopened":[],"bounds":{"document_bytes":16777216,"sheet_cells":100000,"rows_first":2000,"rows_last":500,"rows_between":2000,"halvings":0,"cell_chars":16384,"cell_head_chars":4096},"cells_cut":0,"cells_raw":0,"read":"whole","date_system":"1900"}

{"sheet":"Bearbeitungshinweise","index":0,"n_rows":19,"n_cols":1,"rows_kept":19,"cut":false,"hidden":false,"merged":[]}
[]
["Bei den blauen Feldern handelt es sich um Eingabefelder"]
[]
["Wir empfehlen Ihnen die Monatsdaten aus dem Vorjahr vollständig in die Berechnung Planungsgarantie Vorjahr einzupflegen, damit Sie die korrekte Planungsgarantie kennen und nicht die vorläufige, die nur die ersten 6 Monate berücksichtigt hat. Ggf. sind die Werte für die Kinder mit Behinderung anzupassen, da es für KInder U3 ja einen erhöhten Wert gibt"]
["Es ist darauf zu achten, dass in allen Tabellen der gleiche Auswertungszeitraum zu Grunde gelegt wird. Wenn z.B. die Kinderzahlen aus den Monatsmeldungen für die ersten drei Monate zu Grunde gelegt werden "]
["ist auch die Personalbesetzung für die ersten drei Monate zu berücksichtigen sowie die Daten aus der GuV für die ersten drei Monate"]
[]
["Bei der \"Eingabe aktuelle Daten\" können Sie die Daten aus dem Bewilligungsbescheid entnehmen sowie die Kinderzahlen aus den Monatsmeldungen in KiBiz.web"]
["Bei der \"Eingabe aktuelle Daten\" können Sie die Daten aus dem Bewilligungsbescheid entnehmen sowie die Kinderzahlen aus den Monatsmeldungen in KiBiz.web"]
["nicht aber das Personal für die Verfügungspauschale da dort nicht zwingend päd. Fachkräfte eingesetzt werden müssen. Ebenfalls nicht zu berücksichtigen ist das  Personal welches ggf. über den Topf Familienzentrum abgerechnet wird."]
["Für die \"Personalbesetzung Soll Landesmittel\" in der Auswertung wurde für die Mindeststundenberechnung ein Jahresarbeitgeberbrutto von 58.500 Euro  unterstellt. "]
["Bei den Daten GuV ist darauf zu achten, dass diese periodengerecht abgegrenzt sind. In der Regel reicht es hier aus, die Personalkosten abzugrenzen (Jahressonderzahlung, Leistungszulage)"]
["die KiBiz-Zuschüsse und die Förderung vom LWL  sind nicht zu erfassen, da diese in der Auswertung automatisch auf Grund der Istbelegung/Planungsgarantie berechnet werden."]
["Wir empfehlen die KiBiz-Abschlagszahlungen (sowohl der 91 % Anteil als auch der freiwillige/vertragliche Anteil) in der Finanzbuchhaltung als Verbindlichkeiten zu berücksichtigen und als Ertrag die Zahlen aus dieser Auswertungstabelle zu berücksichtigen"]
["(Verbuchung: Buchungssatz 1: Bank (Zahlungseingänge Abschläge KiBiz ) an Kreditor, Buchungssatz 2: Kreditor an Ertragskonto Zuschuss KiBiz (Zahlen aus dieser Auswertung)."]
["Unter den \"Sonstigen Anmerkungen\" in der Auswertung sollten alle wesentlichen Informationen der Tageseinrichtung für Kinder erfasst werden, die sich nicht direkt aus Finanzbuchhaltung oder KiBiz.web ergeben, "]
["aber für die Einrichtung von wirtschaftlicher Bedeutung sind. Beispielhaft sind hier zu nennen die Angabe des Standes der KiBiz-Rücklage zum 31.07. "]
[" Hinweise zu notwendigen ausstehenden Instandhaltungsmaßnahmen mit Angabe des Volumens, geplanter Ausbau der Kita. mit Abbildung des Eigenanteils, zu erwartende Personalkostenveränderungen durch Rückkehr  "]
["von Mitarbeiterinnen aus der Elternzeit oder durch Mitarbeiterinnen die in Rente gehen. Nennenswerte Veränderungen der Kinderzahlen im Folgejahr(en) auf Grund eines Neubaugebietes, Insolvenz eines großen regionalen Arbeitgeber etc. "]

{"sheet":"Eingabemaske","index":1,"n_rows":36,"n_cols":5,"rows_kept":36,"cut":false,"hidden":false,"merged":[[10,2,10,6],[13,2,13,3],[13,4,13,6],[15,4,15,6],[14,2,14,3],[15,2,15,3]]}
[]
[]
[]
[]
[]
[]
[]
[]
[]
[]
[null,null,"C o n t r o l l i n g  K i n d e r t a g e s e i n r i c h t u n g e n"]
[]
[]
[null,null,"Einrichtung:"]
[]
[null,null,"Kindergartenjahr:",null,"2022/23"]
[]
[]
[null,null,"E I N G A B E N"]
[]
[]
[null,null,null,"Planungsgarantie Vorjahr"]
[]
[null,null,null,"Daten lfd. Jahr"]
[]
[null,null,null,"Personal"]
[]
[null,null,null,"GuV"]
[]
[]
[]
[]
[null,null,"A U S W E R T U N G"]
[]
[]
[null,null,null,"Auswertung Kita"]

{"sheet":"Berech_Planungsgaran_vorjahr","index":2,"n_rows":47,"n_cols":27,"rows_kept":47,"cut":false,"hidden":false,"merged":[[12,8,12,9],[25,8,25,9],[19,8,19,9],[21,8,21,9],[22,8,22,9],[23,8,23,9],[16,1,16,9],[20,1,20,9],[13,8,13,9],[14,8,14,9],[15,8,15,9],[17,8,17,9],[18,8,18,9],[7,1,7,2],[7,3,7,5],[12,1,12,2],[46,1,46,2],[46,3,46,5],[13,1,15,1],[17,1,19,1],[21,1,23,1],[30,1,32,1],[34,1,36,1],[38,1,40,1],[24,1,24,9],[8,1,8,2],[8,3,8,5],[9,1,9,2],[9,3,9,5],[28,25,28,26],[28,3,28,4],[28,5,28,6],[28,7,28,8],[28,9,28,10],[28,11,28,12],[28,13,28,14],[28,15,28,16],[28,17,28,18],[28,19,28,20],[28,21,28,22],[28,23,28,24]]}
[]
[]
[]
[]
[]
[null,"Ermittlung Planungsgarantie Vorjahr gemäß § 21e KiBiz"]
[]
[null,"Name der Einrichtung:",null,{"$f":"Eingabemaske!E14","v":0}]
[null,"Kindergartenjahr:",null,{"$f":"Eingabemaske!E16","v":"2022/23"}]
[null,"Vorjahr:",null,"2021/22"]
[]
[]
[null,null,null,"Std.","€ \nje Kind","Anzahl der Kinder","€ \nje beh.  Kind","Anzahl beh. Kinder","∑"]
[null,"Gr. I","a : 20 Kinder",25,{"$f":"'Eingabe aktuelle Daten'!E29","v":6473.58},{"$f":"(D31+F31+H31+J31+L31+N31+P31+R31+T31+V31+X31+Z31)/C44","v":{"$error":"#DIV/0!"}},{"$f":"'Eingabe aktuelle Daten'!G29","v":22262.48},{"$f":"(E31+G31+I31+K31+M31+O31+Q31+S31+U31+W31+Y31+AA31)/C44","v":{"$error":"#DIV/0!"}},{"$f":"E14*F14+G14*H14","v":{"$error":"#DIV/0!"}}]
[null,null,"b : 20 Kinder",35,{"$f":"'Eingabe aktuelle Daten'!E30","v":8702.6299999999992},{"$f":"(D32+F32+H32+J32+L32+N32+P32+R32+T32+V32+X32+Z32)/C44","v":{"$error":"#DIV/0!"}},{"$f":"'Eingabe aktuelle Daten'!G30","v":22262.48},{"$f":"(E32+G32+I32+K32+M32+O32+Q32+S32+U32+W32+Y32+AA32)/C44","v":{"$error":"#DIV/0!"}},{"$f":"E15*F15+G15*H15","v":{"$error":"#DIV/0!"}}]
[null,null,"c : 20 Kinder",45,{"$f":"'Eingabe aktuelle Daten'!E31","v":11171.65},{"$f":"(D33+F33+H33+J33+L33+N33+P33+R33+T33+V33+X33+Z33)/C44","v":{"$error":"#DIV/0!"}},{"$f":"'Eingabe aktuelle Daten'!G31","v":22262.48},{"$f":"(E33+G33+I33+K33+M33+O33+Q33+S33+U33+W33+Y33+AA33)/C44","v":{"$error":"#DIV/0!"}},{"$error":"#DIV/0!"}]
[]
[null,"Gr. II","a : 10 Kinder",25,{"$f":"'Eingabe aktuelle Daten'!E33","v":13725.2},{"$f":"(D35+F35+H35+J35+L35+N35+P35+R35+T35+V35+X35+Z35)/C44","v":{"$error":"#DIV/0!"}},{"$f":"'Eingabe aktuelle Daten'!G33","v":23817.26},{"$f":"(E35+G35+I35+K35+M35+O35+Q35+S35+U35+W35+Y35+AA35)/C44","v":{"$error":"#DIV/0!"}},{"$f":"E18*F18+G18*H18","v":{"$error":"#DIV/0!"}}]
[null,null,"b : 10 Kinder",35,{"$f":"'Eingabe aktuelle Daten'!E34","v":18572.71},{"$f":"(D36+F36+H36+J36+L36+N36+P36+R36+T36+V36+X36+Z36)/C44","v":{"$error":"#DIV/0!"}},{"$f":"'Eingabe aktuelle Daten'!G34","v":23817.26},{"$f":"(E36+G36+I36+K36+M36+O36+Q36+S36+U36+W36+Y36+AA36)/C44","v":{"$error":"#DIV/0!"}},{"$f":"E19*F19+G19*H19","v":{"$error":"#DIV/0!"}}]
[null,null,"c : 10 Kinder",45,{"$f":"'Eingabe aktuelle Daten'!E35","v":23821.96},{"$f":"(D37+F37+H37+J37+L37+N37+P37+R37+T37+V37+X37+Z37)/C44","v":{"$error":"#DIV/0!"}},{"$f":"'Eingabe aktuelle Daten'!G35","v":25706.959999999999},{"$f":"(E37+G37+I37+K37+M37+O37+Q37+S37+U37+W37+Y37+AA37)/C44","v":{"$error":"#DIV/0!"}},{"$error":"#DIV/0!"}]
[]
[null,"Gr. III","a : 25 Kinder",25,{"$f":"'Eingabe aktuelle Daten'!E37","v":5075.96},{"$f":"(D39+F39+H39+J39+L39+N39+P39+R39+T39+V39+X39+Z39)/C44","v":{"$error":"#DIV/0!"}},{"$f":"'Eingabe aktuelle Daten'!G37","v":22262.48},{"$f":"(E39+G39+I39+K39+M39+O39+Q39+S39+U39+W39+Y39+AA39)/C44","v":{"$error":"#DIV/0!"}},{"$f":"E22*F22+G22*H22","v":{"$error":"#DIV/0!"}}]
[null,null,"b : 25 Kinder",35,{"$f":"'Eingabe aktuelle Daten'!E38","v":6830.55},{"$f":"(D40+F40+H40+J40+L40+N40+P40+R40+T40+V40+X40+Z40)/C44","v":{"$error":"#DIV/0!"}},{"$f":"'Eingabe aktuelle Daten'!G38","v":22262.48},{"$f":"(E40+G40+I40+K40+M40+O40+Q40+S40+U40+W40+Y40+AA40)/C44","v":{"$error":"#DIV/0!"}},{"$f":"E23*F23+G23*H23","v":{"$error":"#DIV/0!"}}]
[null,null,"c : 20 Kinder",45,{"$f":"'Eingabe aktuelle Daten'!E39","v":9926.02},{"$f":"(D41+F41+H41+J41+L41+N41+P41+R41+T41+V41+X41+Z41)/C44","v":{"$error":"#DIV/0!"}},{"$f":"'Eingabe aktuelle Daten'!G39","v":22262.48},{"$f":"(E41+G41+I41+K41+M41+O41+Q41+S41+U41+W41+Y41+AA41)/C44","v":{"$error":"#DIV/0!"}},{"$error":"#DIV/0!"}]
[]
[null,null,"∑",null,null,{"$f":"SUM(F14:F24)","v":{"$error":"#DIV/0!"}},null,{"$f":"SUM(H17:H24)","v":{"$error":"#DIV/0!"}},{"$f":"SUM(I14:J24)","v":{"$error":"#DIV/0!"}}]
[]
[]
[null,null,null,"August",null,"September",null,"Oktober",null,"November",null,"Dezember",null,"Januar",null,"Februar",null,"März",null,"April",null,"Mai",null,"Juni",null,"Juli"]
[null,null,null,"Anzahl der Kinder","Anzahl beh. Kinder","Anzahl der Kinder","Anzahl beh. Kinder","Anzahl der Kinder","Anzahl beh. Kinder","Anzahl der Kinder","Anzahl beh. Kinder","Anzahl der Kinder","Anzahl beh. Kinder","Anzahl der Kinder","Anzahl beh. Kinder","Anzahl der Kinder","Anzahl beh. Kinder","Anzahl der Kinder","Anzahl beh. Kinder","Anzahl der Kinder","Anzahl beh. Kinder","Anzahl der Kinder","Anzahl beh. Kinder","Anzahl der Kinder","Anzahl beh. Kinder","Anzahl der Kinder","Anzahl beh. Kinder"]
[null,"Gr. I","a : 20 Kinder"]
[null,null,"b : 20 Kinder"]
[null,null,"c : 20 Kinder"]
[]
[null,"Gr. II","a : 10 Kinder"]
[null,null,"b : 10 Kinder"]
[null,null,"c : 10 Kinder"]
[]
[null,"Gr. III","a : 25 Kinder"]
[null,null,"b : 25 Kinder"]
[null,null,"c : 20 Kinder"]
[]
[null,null,"∑",{"$f":"SUM(D31+D32+D33+D35+D36+D37+D39+D40+D41)","v":0},0,0,0,0,0,0,0,0,0,0,0,0,0,0,0,0,0,0,0,0,0,0,0]
[null,null,{"$f":"SUM(D44:Z44)","v":0},{"$f":"IF(D43>0,(1),(0))","v":0},null,{"$f":"IF(F43>0,(1),(0))","v":0},null,{"$f":"IF(H43>0,(1),(0))","v":0},null,{"$f":"IF(J43>0,(1),(0))","v":0},null,{"$f":"IF(L43>0,(1),(0))","v":0},null,{"$f":"IF(N43>0,(1),(0))","v":0},null,{"$f":"IF(P43>0,(1),(0))","v":0},null,0,null,{"$f":"IF(T43>0,(1),(0))","v":0},null,{"$f":"IF(V43>0,(1),(0))","v":0},null,0,null,0]
[]
[]
[null,"Summe Planungsgarantie:",null,{"$f":"I26","v":{"$error":"#DIV/0!"}}]

{"sheet":"Eingabe aktuelle Daten","index":3,"n_rows":102,"n_cols":28,"rows_kept":102,"cut":false,"hidden":false,"merged":[[27,10,27,11],[22,5,22,6],[40,10,40,11],[28,10,28,11],[29,10,29,11],[30,10,30,11],[32,10,32,11],[33,10,33,11],[34,10,34,11],[36,10,36,11],[37,10,37,11],[38,10,38,11],[40,8,40,9],[27,8,27,9],[28,8,28,9],[29,8,29,9],[30,8,30,9],[31,1,31,9],[32,8,32,9],[33,8,33,9],[34,8,34,9],[32,1,34,1],[35,1,35,9],[36,8,36,9],[37,8,37,9],[38,8,38,9],[39,1,39,9],[36,1,38,1],[27,1,27,2],[28,1,30,1],[8,1,8,2],[8,3,8,5],[9,1,9,2],[9,3,9,5],[10,1,10,2],[10,3,10,5],[14,1,14,4],[53,1,55,1],[43,23,43,24],[43,25,43,26],[45,1,47,1],[49,1,51,1],[43,13,43,14],[43,15,43,16],[43,17,43,18],[43,19,43,20],[43,21,43,22],[43,3,43,4],[43,5,43,6],[43,7,43,8],[43,9,43,10],[43,11,43,12]]}
[]
[]
[]
[]
[]
[null,"Ermittlung Auswertungsbogen"]
[]
[]
[null,"Name der Einrichtung:"]
[null,"Kindergartenjahr:",null,{"$f":"Eingabemaske!E16","v":"2022/23"}]
[null,"aktuelle Auswertungsmonate:",null,{"$f":"C59","v":0}]
[]
[]
[null,"Daten laut Bewilligungscheid:"]
[null,"Summe Kindpauschalen\n(Bewilligungsbescheid)",null,null,null,850000]
[null,"Familienzentrum"]
[null,"Landezuschuss PlusKita und Sprachförderbedarf § 45"]
[null,"Landeszuschuss zur Qualifizierung § 46 Abs. 2 und 3"]
[null,"Landeszuschuss zur Fachberatung § 47 "]
[null,"Landeszuschuss zur Flexibilisierung § 48"]
[null,"eingruppige Einrichtungen/Waldkindergarten"]
[null,"Kaltmiete nach Kürzung um Erhaltungspauschale"]
[null,"Planungsgarantie lt. Istbelegung Vorjahr",null,null,null,{"$f":"Berech_Planungsgaran_vorjahr!D47","v":{"$error":"#DIV/0!"}}]
[]
[null,"Anzahl Kinder mit Behinderung  Unter 3 Gruppentyp 1 ",null,null,null,0]
[]
[]
[null,null,null,"Std.","€ \nje Kind","Anzahl der Kinder","€ \nje beh.  Kind","Anzahl beh. Kinder","∑",null,"Kinder mit Behinderung U3 Gruppentyp 1"]
[null,"Gr. I","a : 20 Kinder",25,6473.58,{"$f":"(D46+F46+H46+J46+L46+N46+P46+R46+T46+V46+X46+Z46)/C59","v":{"$error":"#DIV/0!"}},22262.48,{"$f":"(E46+G46+I46+K46+M46+O46+Q46+S46+U46+W46+Y46+AA46)/C59","v":{"$error":"#DIV/0!"}},{"$f":"(E29*F29+G29*H29)*C59/12","v":{"$error":"#DIV/0!"}},null,0]
[null,null,"b : 20 Kinder",35,8702.6299999999992,{"$f":"(D47+F47+H47+J47+L47+N47+P47+R47+T47+V47+X47+Z47)/C59","v":{"$error":"#DIV/0!"}},22262.48,{"$f":"(E47+G47+I47+K47+M47+O47+Q47+S47+U47+W47+Y47+AA47)/C59","v":{"$error":"#DIV/0!"}},{"$f":"(E30*F30+G30*H30)*C59/12","v":{"$error":"#DIV/0!"}},null,0]
[null,null,"c : 20 Kinder",45,11171.65,{"$f":"(D48+F48+H48+J48+L48+N48+P48+R48+T48+V48+X48+Z48)/C59","v":{"$error":"#DIV/0!"}},22262.48,{"$f":"(E48+G48+I48+K48+M48+O48+Q48+S48+U48+W48+Y48+AA48)/C59","v":{"$error":"#DIV/0!"}},{"$f":"(E31*F31+G31*H31)*C59/12","v":{"$error":"#DIV/0!"}},null,{"$f":"(F25*(23817.26-22262.48))*C59/12","v":0}]
[]
[null,"Gr. II","a : 10 Kinder",25,13725.2,{"$f":"(D50+F50+H50+J50+L50+N50+P50+R50+T50+V50+X50+Z50)/C59","v":{"$error":"#DIV/0!"}},23817.26,{"$f":"(E50+G50+I50+K50+M50+O50+Q50+S50+U50+W50+Y50+AA50)/C59","v":{"$error":"#DIV/0!"}},{"$f":"(E33*F33+G33*H33)*C59/12","v":{"$error":"#DIV/0!"}},null,0]
[null,null,"b : 10 Kinder",35,18572.71,{"$f":"(D51+F51+H51+J51+L51+N51+P51+R51+T51+V51+X51+Z51)/C59","v":{"$error":"#DIV/0!"}},23817.26,{"$f":"(E51+G51+I51+K51+M51+O51+Q51+S51+U51+W51+Y51+AA51)/C59","v":{"$error":"#DIV/0!"}},{"$f":"(E34*F34+G34*H34)*C59/12","v":{"$error":"#DIV/0!"}},null,0]
[null,null,"c : 10 Kinder",45,23821.96,{"$f":"(D52+F52+H52+J52+L52+N52+P52+R52+T52+V52+X52+Z52)/C59","v":{"$error":"#DIV/0!"}},25706.959999999999,{"$f":"(E52+G52+I52+K52+M52+O52+Q52+S52+U52+W52+Y52+AA52)/C59","v":{"$error":"#DIV/0!"}},{"$f":"(E35*F35+G35*H35)*C59/12","v":{"$error":"#DIV/0!"}},null,0]
[]
[null,"Gr. III","a : 25 Kinder",25,5075.96,{"$f":"(D54+F54+H54+J54+L54+N54+P54+R54+T54+V54+X54+Z54)/C59","v":{"$error":"#DIV/0!"}},22262.48,{"$f":"(E54+G54+I54+K54+M54+O54+Q54+S54+U54+W54+Y54+AA54)/C59","v":{"$error":"#DIV/0!"}},{"$f":"(E37*F37+G37*H37)*C59/12","v":{"$error":"#DIV/0!"}},null,0]
[null,null,"b : 25 Kinder",35,6830.55,{"$f":"(D55+F55+H55+J55+L55+N55+P55+R55+T55+V55+X55+Z55)/C59","v":{"$error":"#DIV/0!"}},22262.48,{"$f":"(E55+G55+I55+K55+M55+O55+Q55+S55+U55+W55+Y55+AA55)/C59","v":{"$error":"#DIV/0!"}},{"$f":"(E38*F38+G38*H38)*C59/12","v":{"$error":"#DIV/0!"}},null,0]
[null,null,"c : 20 Kinder",45,9926.02,{"$f":"(D56+F56+H56+J56+L56+N56+P56+R56+T56+V56+X56+Z56)/C59","v":{"$error":"#DIV/0!"}},22262.48,{"$f":"(E56+G56+I56+K56+M56+O56+Q56+S56+U56+W56+Y56+AA56)/C59","v":{"$error":"#DIV/0!"}},{"$f":"(E39*F39+G39*H39)*C59/12","v":{"$error":"#DIV/0!"}},null,0]
[]
[null,null,"∑",null,null,{"$f":"SUM(F29:F39)","v":{"$error":"#DIV/0!"}},null,{"$f":"SUM(H29:H39)","v":{"$error":"#DIV/0!"}},{"$f":"SUM(I29:J39)","v":{"$error":"#DIV/0!"}},null,{"$f":"SUM(K29:L39)","v":0}]
[]
[]
[null,null,null,"August",null,"September",null,"Oktober",null,"November",null,"Dezember",null,"Januar",null,"Februar",null,"März",null,"April",null,"Mai",null,"Juni",null,"Juli"]
[null,null,null,"Anzahl der Kinder","Anzahl beh. Kinder","Anzahl der Kinder","Anzahl beh. Kinder","Anzahl der Kinder","Anzahl beh. Kinder","Anzahl der Kinder","Anzahl beh. Kinder","Anzahl der Kinder","Anzahl beh. Kinder","Anzahl der Kinder","Anzahl beh. Kinder","Anzahl der Kinder","Anzahl beh. Kinder","Anzahl der Kinder","Anzahl beh. Kinder","Anzahl der Kinder","Anzahl beh. Kinder","Anzahl der Kinder","Anzahl beh. Kinder","Anzahl der Kinder","Anzahl beh. Kinder","Anzahl der Kinder","Anzahl beh. Kinder"]
[null,"Gr. I","a : 20 Kinder"]
[null,null,"b : 20 Kinder"]
[null,null,"c : 20 Kinder"]
[]
[null,"Gr. II","a : 10 Kinder"]
[null,null,"b : 10 Kinder"]
[null,null,"c : 10 Kinder"]
[]
[null,"Gr. III","a : 25 Kinder"]
[null,null,"b : 25 Kinder"]
[null,null,"c : 20 Kinder"]
[]
[null,null,"∑",{"$f":"SUM(D46:D56)","v":0},{"$f":"SUM(E46:E56)","v":0},{"$f":"SUM(F46:F56)","v":0},{"$f":"SUM(G46+G47+G48+G50+G51+G52+G54+G55+G56)","v":0},{"$f":"SUM(H46:H56)","v":0},0,{"$f":"SUM(J46:J56)","v":0},0,{"$f":"SUM(L46:L56)","v":0},0,{"$f":"SUM(N46:N56)","v":0},0,{"$f":"SUM(P46:P56)","v":0},0,{"$f":"SUM(R46:R56)","v":0},0,{"$f":"SUM(T46:T56)","v":0},0,{"$f":"SUM(V46:V56)","v":0},0,{"$f":"SUM(X46:X56)","v":0},0,{"$f":"SUM(Z46:Z56)","v":0},0]
[null,null,{"$f":"SUM(D59:Z59)","v":0},{"$f":"IF(D58>0,(1),(0))","v":0},null,{"$f":"IF(F58>0,(1),(0))","v":0},null,{"$f":"IF(H58>0,(1),(0))","v":0},null,{"$f":"IF(J58>0,(1),(0))","v":0},null,{"$f":"IF(L58>0,(1),(0))","v":0},null,{"$f":"IF(N58>0,(1),(0))","v":0},null,{"$f":"IF(P58>0,(1),(0))","v":0},null,0,null,{"$f":"IF(T58>0,(1),(0))","v":0},null,{"$f":"IF(V58>0,(1),(0))","v":0},null,0,null,0]
[]
[null,19.75,1,null,{"$f":"IF($E$58=C61,(B61),(0))","v":0},null,{"$f":"IF($G$58=C61,(B61),(0))","v":0},null,{"$f":"IF($I$58=C61,(B61),(0))","v":0},null,{"$f":"IF($K$58=C61,(B61),(0))","v":0},null,{"$f":"IF($M$58=C61,(B61),(0))","v":0},null,{"$f":"IF($O$58=C61,(B61),(0))","v":0},null,{"$f":"IF($Q$58=C61,(B61),(0))","v":0},null,{"$f":"IF($S$58=C61,(B61),(0))","v":0},null,{"$f":"IF($U$58=C61,(B61),(0))","v":0},null,{"$f":"IF($W$58=C61,(B61),(0))","v":0},null,{"$f":"IF($Y$58=C61,(B61),(0))","v":0},null,{"$f":"IF($AA$58=C61,(B61),(0))","v":0},{"$f":"SUM(E61:AA61)/C59","v":{"$error":"#DIV/0!"}}]
[null,28.5,2,null,{"$f":"IF($E$58=C62,(B62),(0))","v":0},null,{"$f":"IF($G$58=C62,(B62),(0))","v":0},null,{"$f":"IF($I$58=C62,(B62),(0))","v":0},null,{"$f":"IF($K$58=C62,(B62),(0))","v":0},null,{"$f":"IF($M$58=C62,(B62),(0))","v":0},null,{"$f":"IF($O$58=C62,(B62),(0))","v":0},null,{"$f":"IF($Q$58=C62,(B62),(0))","v":0},null,{"$f":"IF($S$58=C62,(B62),(0))","v":0},null,{"$f":"IF($U$58=C62,(B62),(0))","v":0},null,{"$f":"IF($W$58=C62,(B62),(0))","v":0},null,{"$f":"IF($Y$58=C62,(B62),(0))","v":0},null,{"$f":"IF($AA$58=C62,(B62),(0))","v":0},{"$f":"SUM(E62:AA62)/C59","v":{"$error":"#DIV/0!"}}]
[null,41,3,null,0,null,0,null,0,null,0,null,0,null,0,null,0,null,0,null,0,null,0,null,0,null,0,{"$f":"SUM(E63:AA63)/C59","v":{"$error":"#DIV/0!"}}]
[null,50.5,4,null,0,null,0,null,0,null,0,null,0,null,0,null,0,null,0,null,0,null,0,null,0,null,0,{"$f":"SUM(E64:AA64)/C59","v":{"$error":"#DIV/0!"}}]
[null,60,5,null,0,null,0,null,0,null,0,null,0,null,0,null,0,null,0,null,0,null,0,null,0,null,0,{"$f":"SUM(E65:AA65)/C59","v":{"$error":"#DIV/0!"}}]
[null,69.5,6,null,0,null,0,null,0,null,0,null,0,null,0,null,0,null,0,null,0,null,0,null,0,null,0,{"$f":"SUM(E66:AA66)/C59","v":{"$error":"#DIV/0!"}}]
[null,89,7,null,0,null,0,null,0,null,0,null,0,null,0,null,0,null,0,null,0,null,0,null,0,null,0,{"$f":"SUM(E67:AA67)/C59","v":{"$error":"#DIV/0!"}}]
[null,97.5,8,null,0,null,0,null,0,null,0,null,0,null,0,null,0,null,0,null,0,null,0,null,0,null,0,{"$f":"SUM(E68:AA68)/C59","v":{"$error":"#DIV/0!"}}]
[null,110,9,null,0,null,0,null,0,null,0,null,0,null,0,null,0,null,0,null,0,null,0,null,0,null,0,{"$f":"SUM(E69:AA69)/C59","v":{"$error":"#DIV/0!"}}]
[null,119.5,10,null,0,null,0,null,0,null,0,null,0,null,0,null,0,null,0,null,0,null,0,null,0,null,0,{"$f":"SUM(E70:AA70)/C59","v":{"$error":"#DIV/0!"}}]
[null,129,11,null,0,null,0,null,0,null,0,null,0,null,0,null,0,null,0,null,0,null,0,null,0,null,0,{"$f":"SUM(E71:AA71)/C59","v":{"$error":"#DIV/0!"}}]
[null,138.5,12,null,0,null,0,null,0,null,0,null,0,null,0,null,0,null,0,null,0,null,0,null,0,null,0,{"$f":"SUM(E72:AA72)/C59","v":{"$error":"#DIV/0!"}}]
[null,158,13,null,0,null,0,null,0,null,0,null,0,null,0,null,0,null,0,null,0,null,0,null,0,null,0,{"$f":"SUM(E73:AA73)/C59","v":{"$error":"#DIV/0!"}}]
[null,166.5,14,null,0,null,0,null,0,null,0,null,0,null,0,null,0,null,0,null,0,null,0,null,0,null,0,{"$f":"SUM(E74:AA74)/C59","v":{"$error":"#DIV/0!"}}]
[null,179,15,null,0,null,0,null,0,null,0,null,0,null,0,null,0,null,0,null,0,null,0,null,0,null,0,{"$f":"SUM(E75:AA75)/C59","v":{"$error":"#DIV/0!"}}]
[null,188.5,16,null,0,null,0,null,0,null,0,null,0,null,0,null,0,null,0,null,0,null,0,null,0,null,0,{"$f":"SUM(E76:AA76)/C59","v":{"$error":"#DIV/0!"}}]
[null,198,17,null,0,null,0,null,0,null,0,null,0,null,0,null,0,null,0,null,0,null,0,null,0,null,0,{"$f":"SUM(E77:AA77)/C59","v":{"$error":"#DIV/0!"}}]
[null,207.5,18,null,0,null,0,null,0,null,0,null,0,null,0,null,0,null,0,null,0,null,0,null,0,null,0,{"$f":"SUM(E78:AA78)/C59","v":{"$error":"#DIV/0!"}}]
[null,227,19,null,0,null,0,null,0,null,0,null,0,null,0,null,0,null,0,null,0,null,0,null,0,null,0,{"$f":"SUM(E79:AA79)/C59","v":{"$error":"#DIV/0!"}}]
[null,235.5,20,null,0,null,0,null,0,null,0,null,0,null,0,null,0,null,0,null,0,null,0,null,0,null,0,{"$f":"SUM(E80:AA80)/C59","v":{"$error":"#DIV/0!"}}]
[null,null,null,null,null,null,null,null,null,null,null,null,null,null,null,null,null,null,null,null,null,null,null,null,null,null,null,{"$f":"SUM(AB61:AB80)","v":{"$error":"#DIV/0!"}}]
[]
[null,1416.71,null,null,{"$f":"IF($E$58=C61,(B83),(0))","v":0},null,{"$f":"IF($G$58=C61,(B83),(0))","v":0},null,{"$f":"IF($I$58=C61,(B83),(0))","v":0},null,{"$f":"IF($K$58=C61,(B83),(0))","v":0},null,{"$f":"IF($M$58=C61,(B83),(0))","v":0},null,{"$f":"IF($M$58=C61,(B83),(0))","v":0},null,{"$f":"IF($Q$58=C61,(B83),(0))","v":0},null,{"$f":"IF($S$58=C61,(B83),(0))","v":0},null,{"$f":"IF($U$58=C61,(B83),(0))","v":0},null,{"$f":"IF($W$58=C61,(B83),(0))","v":0},null,{"$f":"IF($Y$58=C61,(B83),(0))","v":0},null,{"$f":"IF($Y$58=C61,(B83),(0))","v":0},{"$f":"SUM(E83:AA83)","v":0}]
[null,1471.36,null,null,{"$f":"IF($E$58=C62,(B84),(0))","v":0},null,{"$f":"IF($G$58=C62,(B84),(0))","v":0},null,{"$f":"IF($I$58=C62,(B84),(0))","v":0},null,{"$f":"IF($K$58=C62,(B84),(0))","v":0},null,{"$f":"IF($M$58=C62,(B84),(0))","v":0},null,{"$f":"IF($M$58=C62,(B84),(0))","v":0},null,{"$f":"IF($Q$58=C62,(B84),(0))","v":0},null,{"$f":"IF($S$58=C62,(B84),(0))","v":0},null,{"$f":"IF($U$58=C62,(B84),(0))","v":0},null,{"$f":"IF($W$58=C62,(B84),(0))","v":0},null,{"$f":"IF($Y$58=C62,(B84),(0))","v":0},null,{"$f":"IF($Y$58=C62,(B84),(0))","v":0},{"$f":"SUM(E84:AA84)","v":0}]
[null,1990.62,null,null,0,null,0,null,0,null,0,null,0,null,0,null,0,null,0,null,0,null,0,null,0,null,0,0]
[null,2138.44,null,null,0,null,0,null,0,null,0,null,0,null,0,null,0,null,0,null,0,null,0,null,0,null,0,0]
[null,2286.25,null,null,0,null,0,null,0,null,0,null,0,null,0,null,0,null,0,null,0,null,0,null,0,null,0,0]
[null,2434.02,null,null,0,null,0,null,0,null,0,null,0,null,0,null,0,null,0,null,0,null,0,null,0,null,0,0]
[null,3850.73,null,null,0,null,0,null,0,null,0,null,0,null,0,null,0,null,0,null,0,null,0,null,0,null,0,0]
[null,3905.38,null,null,0,null,0,null,0,null,0,null,0,null,0,null,0,null,0,null,0,null,0,null,0,null,0,0]
[null,4424.6400000000003,null,null,0,null,0,null,0,null,0,null,0,null,0,null,0,null,0,null,0,null,0,null,0,null,0,0]
[null,4572.46,null,null,0,null,0,null,0,null,0,null,0,null,0,null,0,null,0,null,0,null,0,null,0,null,0,0]
[null,4720.2700000000004,null,null,0,null,0,null,0,null,0,null,0,null,0,null,0,null,0,null,0,null,0,null,0,null,0,0]
[null,4868.04,null,null,0,null,0,null,0,null,0,null,0,null,0,null,0,null,0,null,0,null,0,null,0,null,0,0]
[null,6284.75,null,null,0,null,0,null,0,null,0,null,0,null,0,null,0,null,0,null,0,null,0,null,0,null,0,0]
[null,6339.4,null,null,0,null,0,null,0,null,0,null,0,null,0,null,0,null,0,null,0,null,0,null,0,null,0,0]
[null,6858.66,null,null,0,null,0,null,0,null,0,null,0,null,0,null,0,null,0,null,0,null,0,null,0,null,0,0]
[null,7006.48,null,null,0,null,0,null,0,null,0,null,0,null,0,null,0,null,0,null,0,null,0,null,0,null,0,0]
[null,7154.29,null,null,0,null,0,null,0,null,0,null,0,null,0,null,0,null,0,null,0,null,0,null,0,null,0,0]
[null,7302.06,null,null,0,null,0,null,0,null,0,null,0,null,0,null,0,null,0,null,0,null,0,null,0,null,0,0]
[null,8718.77,null,null,0,null,0,null,0,null,0,null,0,null,0,null,0,null,0,null,0,null,0,null,0,null,0,0]
[null,8773.42,null,null,0,null,0,null,{"$f":"IF($I$58=C80,(B102),(0))","v":0},null,0,null,0,null,0,null,0,null,0,null,0,null,0,null,0,null,0,{"$f":"SUM(AB83:AB101)","v":0}]

{"sheet":"Ermittlung_Zuschuss_mindestbese","index":4,"n_rows":54,"n_cols":11,"rows_kept":54,"cut":false,"hidden":false,"merged":[[8,3,8,4],[15,1,15,2],[16,1,18,1],[24,1,26,1],[27,1,27,10],[20,1,22,1],[23,1,23,10],[19,1,19,10],[9,1,9,2],[10,1,10,2],[9,3,9,4],[10,3,10,4],[41,5,41,6],[43,5,43,6],[44,5,44,6],[46,5,46,6],[34,5,34,6],[35,5,35,6],[40,5,40,6],[38,5,38,6],[39,5,39,6]]}
[]
[]
[]
[]
[]
[]
[null,"Ermittlung Zuschuss Mindesbesetzung"]
[]
[null,"Name der Einrichtung:",null,{"$f":"Eingabemaske!E14","v":0}]
[null,"Kindergartenjahr:",null,{"$f":"Eingabemaske!E16","v":"2022/23"}]
[null,"aktuelle Auswertungsmonate:",null,{"$f":"'Eingabe aktuelle Daten'!C59","v":0}]
[]
[]
[]
[]
[null,null,null,"Std.","€ \nje Kind","Anzahl der Kinder","Anzahl beh. Kinder","∑","Fach- und EK-Stunden\nø\n[in Std.]","Freistellung der Leitung","Integration Personalbesetzung\nø\n[in Std.]"]
[null,"Gr. I","a : 20 Kinder",25,{"$f":"'Eingabe aktuelle Daten'!E29","v":6473.58},{"$f":"'Eingabe aktuelle Daten'!F29","v":{"$error":"#DIV/0!"}},{"$f":"('Eingabe aktuelle Daten'!E46+'Eingabe aktuelle Daten'!G46+'Eingabe aktuelle Daten'!I46+'Eingabe aktuelle Daten'!K46+'Eingabe aktuelle Daten'!M46+'Eingabe aktuelle Daten'!O46+'Eingabe aktuelle Daten'!Q46+'Eingabe aktuelle Daten'!S46+'Eingabe aktuelle Daten'!U46+'Eingabe aktuelle Daten'!W46+'Eingabe aktuelle Daten'!Y46+'Eingabe aktuelle Daten'!AA46)/'Eingabe aktuelle Daten'!$C$59","v":{"$error":"#DIV/0!"}},{"$f":"('Eingabe aktuelle Daten'!E29*'Eingabe aktuelle Daten'!F29+'Eingabe aktuelle Daten'!G29*'Eingabe aktuelle Daten'!H29)*'Eingabe aktuelle Daten'!C59/12","v":{"$error":"#DIV/0!"}},{"$f":"(F17+G17)*2.75","v":{"$error":"#DIV/0!"}},{"$f":"(F17+G17)*0.25","v":{"$error":"#DIV/0!"}}]
[null,null,"b : 20 Kinder",35,{"$f":"'Eingabe aktuelle Daten'!E30","v":8702.6299999999992},{"$f":"('Eingabe aktuelle Daten'!D47+'Eingabe aktuelle Daten'!F47+'Eingabe aktuelle Daten'!H47+'Eingabe aktuelle Daten'!J47+'Eingabe aktuelle Daten'!L47+'Eingabe aktuelle Daten'!N47+'Eingabe aktuelle Daten'!P47+'Eingabe aktuelle Daten'!R47+'Eingabe aktuelle Daten'!T47+'Eingabe aktuelle Daten'!V47+'Eingabe aktuelle Daten'!X47+'Eingabe aktuelle Daten'!Z47)/'Eingabe aktuelle Daten'!$C$59","v":{"$error":"#DIV/0!"}},{"$f":"('Eingabe aktuelle Daten'!E47+'Eingabe aktuelle Daten'!G47+'Eingabe aktuelle Daten'!I47+'Eingabe aktuelle Daten'!K47+'Eingabe aktuelle Daten'!M47+'Eingabe aktuelle Daten'!O47+'Eingabe aktuelle Daten'!Q47+'Eingabe aktuelle Daten'!S47+'Eingabe aktuelle Daten'!U47+'Eingabe aktuelle Daten'!W47+'Eingabe aktuelle Daten'!Y47+'Eingabe aktuelle Daten'!AA47)/'Eingabe aktuelle Daten'!$C$59","v":{"$error":"#DIV/0!"}},{"$f":"('Eingabe aktuelle Daten'!E30*'Eingabe aktuelle Daten'!F30+'Eingabe aktuelle Daten'!G30*'Eingabe aktuelle Daten'!H30)*'Eingabe aktuelle Daten'!C59/12","v":{"$error":"#DIV/0!"}},{"$f":"(F18+G18)*3.85","v":{"$error":"#DIV/0!"}},{"$f":"(F18+G18)*0.35","v":{"$error":"#DIV/0!"}}]
[null,null,"c : 20 Kinder",45,{"$f":"'Eingabe aktuelle Daten'!E31","v":11171.65},{"$f":"('Eingabe aktuelle Daten'!D48+'Eingabe aktuelle Daten'!F48+'Eingabe aktuelle Daten'!H48+'Eingabe aktuelle Daten'!J48+'Eingabe aktuelle Daten'!L48+'Eingabe aktuelle Daten'!N48+'Eingabe aktuelle Daten'!P48+'Eingabe aktuelle Daten'!R48+'Eingabe aktuelle Daten'!T48+'Eingabe aktuelle Daten'!V48+'Eingabe aktuelle Daten'!X48+'Eingabe aktuelle Daten'!Z48)/'Eingabe aktuelle Daten'!$C$59","v":{"$error":"#DIV/0!"}},{"$f":"('Eingabe aktuelle Daten'!E48+'Eingabe aktuelle Daten'!G48+'Eingabe aktuelle Daten'!I48+'Eingabe aktuelle Daten'!K48+'Eingabe aktuelle Daten'!M48+'Eingabe aktuelle Daten'!O48+'Eingabe aktuelle Daten'!Q48+'Eingabe aktuelle Daten'!S48+'Eingabe aktuelle Daten'!U48+'Eingabe aktuelle Daten'!W48+'Eingabe aktuelle Daten'!Y48+'Eingabe aktuelle Daten'!AA48)/'Eingabe aktuelle Daten'!$C$59","v":{"$error":"#DIV/0!"}},{"$f":"('Eingabe aktuelle Daten'!E31*'Eingabe aktuelle Daten'!F31+'Eingabe aktuelle Daten'!G31*'Eingabe aktuelle Daten'!H31+'Eingabe aktuelle Daten'!F25*1526.41)*'Eingabe aktuelle Daten'!C59/12","v":{"$error":"#DIV/0!"}},{"$f":"(F19+G19)*4.95","v":{"$error":"#DIV/0!"}},{"$f":"(F19+G19)*0.45","v":{"$error":"#DIV/0!"}}]
[]
[null,"Gr. II","a : 10 Kinder",25,{"$f":"'Eingabe aktuelle Daten'!E33","v":13725.2},{"$f":"('Eingabe aktuelle Daten'!D50+'Eingabe aktuelle Daten'!F50+'Eingabe aktuelle Daten'!H50+'Eingabe aktuelle Daten'!J50+'Eingabe aktuelle Daten'!L50+'Eingabe aktuelle Daten'!N50+'Eingabe aktuelle Daten'!P50+'Eingabe aktuelle Daten'!R50+'Eingabe aktuelle Daten'!T50+'Eingabe aktuelle Daten'!V50+'Eingabe aktuelle Daten'!X50+'Eingabe aktuelle Daten'!Z50)/'Eingabe aktuelle Daten'!$C$59","v":{"$error":"#DIV/0!"}},{"$f":"('Eingabe aktuelle Daten'!E50+'Eingabe aktuelle Daten'!G50+'Eingabe aktuelle Daten'!I50+'Eingabe aktuelle Daten'!K50+'Eingabe aktuelle Daten'!M50+'Eingabe aktuelle Daten'!O50+'Eingabe aktuelle Daten'!Q50+'Eingabe aktuelle Daten'!S50+'Eingabe aktuelle Daten'!U50+'Eingabe aktuelle Daten'!W50+'Eingabe aktuelle Daten'!Y50+'Eingabe aktuelle Daten'!AA50)/'Eingabe aktuelle Daten'!$C$59","v":{"$error":"#DIV/0!"}},{"$f":"('Eingabe aktuelle Daten'!E33*'Eingabe aktuelle Daten'!F33+'Eingabe aktuelle Daten'!G33*'Eingabe aktuelle Daten'!H33)*'Eingabe aktuelle Daten'!C59/12","v":{"$error":"#DIV/0!"}},{"$f":"(F21+G21)*5.5","v":{"$error":"#DIV/0!"}},{"$f":"(F21+G21)*0.5","v":{"$error":"#DIV/0!"}}]
[null,null,"b : 10 Kinder",35,{"$f":"'Eingabe aktuelle Daten'!E34","v":18572.71},{"$f":"('Eingabe aktuelle Daten'!D51+'Eingabe aktuelle Daten'!F51+'Eingabe aktuelle Daten'!H51+'Eingabe aktuelle Daten'!J51+'Eingabe aktuelle Daten'!L51+'Eingabe aktuelle Daten'!N51+'Eingabe aktuelle Daten'!P51+'Eingabe aktuelle Daten'!R51+'Eingabe aktuelle Daten'!T51+'Eingabe aktuelle Daten'!V51+'Eingabe aktuelle Daten'!X51+'Eingabe aktuelle Daten'!Z51)/'Eingabe aktuelle Daten'!$C$59","v":{"$error":"#DIV/0!"}},{"$f":"('Eingabe aktuelle Daten'!E51+'Eingabe aktuelle Daten'!G51+'Eingabe aktuelle Daten'!I51+'Eingabe aktuelle Daten'!K51+'Eingabe aktuelle Daten'!M51+'Eingabe aktuelle Daten'!O51+'Eingabe aktuelle Daten'!Q51+'Eingabe aktuelle Daten'!S51+'Eingabe aktuelle Daten'!U51+'Eingabe aktuelle Daten'!W51+'Eingabe aktuelle Daten'!Y51+'Eingabe aktuelle Daten'!AA51)/'Eingabe aktuelle Daten'!$C$59","v":{"$error":"#DIV/0!"}},{"$f":"('Eingabe aktuelle Daten'!E34*'Eingabe aktuelle Daten'!F34+'Eingabe aktuelle Daten'!G34*'Eingabe aktuelle Daten'!H34)*'Eingabe aktuelle Daten'!C59/12","v":{"$error":"#DIV/0!"}},{"$f":"(F22+G22)*7.7","v":{"$error":"#DIV/0!"}},{"$f":"(F22+G22)*0.7","v":{"$error":"#DIV/0!"}}]
[null,null,"c : 10 Kinder",45,{"$f":"'Eingabe aktuelle Daten'!E35","v":23821.96},{"$f":"('Eingabe aktuelle Daten'!D52+'Eingabe aktuelle Daten'!F52+'Eingabe aktuelle Daten'!H52+'Eingabe aktuelle Daten'!J52+'Eingabe aktuelle Daten'!L52+'Eingabe aktuelle Daten'!N52+'Eingabe aktuelle Daten'!P52+'Eingabe aktuelle Daten'!R52+'Eingabe aktuelle Daten'!T52+'Eingabe aktuelle Daten'!V52+'Eingabe aktuelle Daten'!X52+'Eingabe aktuelle Daten'!Z52)/'Eingabe aktuelle Daten'!$C$59","v":{"$error":"#DIV/0!"}},{"$f":"('Eingabe aktuelle Daten'!E52+'Eingabe aktuelle Daten'!G52+'Eingabe aktuelle Daten'!I52+'Eingabe aktuelle Daten'!K52+'Eingabe aktuelle Daten'!M52+'Eingabe aktuelle Daten'!O52+'Eingabe aktuelle Daten'!Q52+'Eingabe aktuelle Daten'!S52+'Eingabe aktuelle Daten'!U52+'Eingabe aktuelle Daten'!W52+'Eingabe aktuelle Daten'!Y52+'Eingabe aktuelle Daten'!AA52)/'Eingabe aktuelle Daten'!$C$59","v":{"$error":"#DIV/0!"}},{"$f":"('Eingabe aktuelle Daten'!E35*'Eingabe aktuelle Daten'!F35+'Eingabe aktuelle Daten'!G35*'Eingabe aktuelle Daten'!H35)*'Eingabe aktuelle Daten'!C59/12","v":{"$error":"#DIV/0!"}},{"$f":"(F23+G23)*9.9","v":{"$error":"#DIV/0!"}},{"$f":"(F23+G23)*0.9","v":{"$error":"#DIV/0!"}}]
[]
[null,"Gr. III","a : 25 Kinder",25,{"$f":"'Eingabe aktuelle Daten'!E37","v":5075.96},{"$f":"('Eingabe aktuelle Daten'!D54+'Eingabe aktuelle Daten'!F54+'Eingabe aktuelle Daten'!H54+'Eingabe aktuelle Daten'!J54+'Eingabe aktuelle Daten'!L54+'Eingabe aktuelle Daten'!N54+'Eingabe aktuelle Daten'!P54+'Eingabe aktuelle Daten'!R54+'Eingabe aktuelle Daten'!T54+'Eingabe aktuelle Daten'!V54+'Eingabe aktuelle Daten'!X54+'Eingabe aktuelle Daten'!Z54)/'Eingabe aktuelle Daten'!$C$59","v":{"$error":"#DIV/0!"}},{"$f":"('Eingabe aktuelle Daten'!E54+'Eingabe aktuelle Daten'!G54+'Eingabe aktuelle Daten'!I54+'Eingabe aktuelle Daten'!K54+'Eingabe aktuelle Daten'!M54+'Eingabe aktuelle Daten'!O54+'Eingabe aktuelle Daten'!Q54+'Eingabe aktuelle Daten'!S54+'Eingabe aktuelle Daten'!U54+'Eingabe aktuelle Daten'!W54+'Eingabe aktuelle Daten'!Y54+'Eingabe aktuelle Daten'!AA54)/'Eingabe aktuelle Daten'!$C$59","v":{"$error":"#DIV/0!"}},{"$f":"('Eingabe aktuelle Daten'!E37*'Eingabe aktuelle Daten'!F37+'Eingabe aktuelle Daten'!G37*'Eingabe aktuelle Daten'!H37)*'Eingabe aktuelle Daten'!C59/12","v":{"$error":"#DIV/0!"}},{"$f":"(F25+G25)*2.2","v":{"$error":"#DIV/0!"}},{"$f":"(F25+G25)*0.2","v":{"$error":"#DIV/0!"}}]
[null,null,"b : 25 Kinder",35,{"$f":"'Eingabe aktuelle Daten'!E38","v":6830.55},{"$f":"('Eingabe aktuelle Daten'!D55+'Eingabe aktuelle Daten'!F55+'Eingabe aktuelle Daten'!H55+'Eingabe aktuelle Daten'!J55+'Eingabe aktuelle Daten'!L55+'Eingabe aktuelle Daten'!N55+'Eingabe aktuelle Daten'!P55+'Eingabe aktuelle Daten'!R55+'Eingabe aktuelle Daten'!T55+'Eingabe aktuelle Daten'!V55+'Eingabe aktuelle Daten'!X55+'Eingabe aktuelle Daten'!Z55)/'Eingabe aktuelle Daten'!$C$59","v":{"$error":"#DIV/0!"}},{"$f":"('Eingabe aktuelle Daten'!E55+'Eingabe aktuelle Daten'!G55+'Eingabe aktuelle Daten'!I55+'Eingabe aktuelle Daten'!K55+'Eingabe aktuelle Daten'!M55+'Eingabe aktuelle Daten'!O55+'Eingabe aktuelle Daten'!Q55+'Eingabe aktuelle Daten'!S55+'Eingabe aktuelle Daten'!U55+'Eingabe aktuelle Daten'!W55+'Eingabe aktuelle Daten'!Y55+'Eingabe aktuelle Daten'!AA55)/'Eingabe aktuelle Daten'!$C$59","v":{"$error":"#DIV/0!"}},{"$f":"('Eingabe aktuelle Daten'!E38*'Eingabe aktuelle Daten'!F38+'Eingabe aktuelle Daten'!G38*'Eingabe aktuelle Daten'!H38)*'Eingabe aktuelle Daten'!C59/12","v":{"$error":"#DIV/0!"}},{"$f":"(F26+G26)*3.08","v":{"$error":"#DIV/0!"}},{"$f":"(F26+G26)*0.28","v":{"$error":"#DIV/0!"}}]
[null,null,"c : 20 Kinder",45,{"$f":"'Eingabe aktuelle Daten'!E39","v":9926.02},{"$f":"('Eingabe aktuelle Daten'!D56+'Eingabe aktuelle Daten'!F56+'Eingabe aktuelle Daten'!H56+'Eingabe aktuelle Daten'!J56+'Eingabe aktuelle Daten'!L56+'Eingabe aktuelle Daten'!N56+'Eingabe aktuelle Daten'!P56+'Eingabe aktuelle Daten'!R56+'Eingabe aktuelle Daten'!T56+'Eingabe aktuelle Daten'!V56+'Eingabe aktuelle Daten'!X56+'Eingabe aktuelle Daten'!Z56)/'Eingabe aktuelle Daten'!$C$59","v":{"$error":"#DIV/0!"}},{"$f":"('Eingabe aktuelle Daten'!E56+'Eingabe aktuelle Daten'!G56+'Eingabe aktuelle Daten'!I56+'Eingabe aktuelle Daten'!K56+'Eingabe aktuelle Daten'!M56+'Eingabe aktuelle Daten'!O56+'Eingabe aktuelle Daten'!Q56+'Eingabe aktuelle Daten'!S56+'Eingabe aktuelle Daten'!U56+'Eingabe aktuelle Daten'!W56+'Eingabe aktuelle Daten'!Y56+'Eingabe aktuelle Daten'!AA56)/'Eingabe aktuelle Daten'!$C$59","v":{"$error":"#DIV/0!"}},{"$f":"('Eingabe aktuelle Daten'!E39*'Eingabe aktuelle Daten'!F39+'Eingabe aktuelle Daten'!G39*'Eingabe aktuelle Daten'!H39)*'Eingabe aktuelle Daten'!C59/12","v":{"$error":"#DIV/0!"}},{"$f":"(F27+G27)*4.95","v":{"$error":"#DIV/0!"}},{"$f":"(F27+G27)*0.45","v":{"$error":"#DIV/0!"}}]
[]
[null,null,"∑",null,null,{"$f":"SUM(F17:F27)","v":{"$error":"#DIV/0!"}},{"$f":"SUM(G17:G27)","v":{"$error":"#DIV/0!"}},{"$f":"SUM(H17:H27)","v":{"$error":"#DIV/0!"}},{"$f":"SUM(I17:I27)","v":{"$error":"#DIV/0!"}},{"$f":"SUM(J17:J27)","v":{"$error":"#DIV/0!"}}]
[]
[]
[]
[]
[]
[null,"Summe laut Istbelegung",null,null,null,{"$f":"H29","v":{"$error":"#DIV/0!"}}]
[null,"Summe KIndpauschalen Bewilligungsbescheid",null,null,null,{"$f":"'Eingabe aktuelle Daten'!F15/12*'Eingabe aktuelle Daten'!C59","v":0},10000]
[null,"Planungsgarantie für Auswertungszeitraum",null,null,null,null,{"$f":"'Eingabe aktuelle Daten'!F23*'Eingabe aktuelle Daten'!C59/12","v":{"$error":"#DIV/0!"}}]
[]
[]
[null,"nachrichtlich:"]
[null,"Anpassung Bescheid Abweichung Istbelegung zu Bescheid",null,null,null,{"$f":"F35-F36","v":{"$error":"#DIV/0!"}},0]
[null,"Ausgleich Rückzahlung durch Planungsgarantie",null,null,null,{"$f":"IF(G37>H29,(G37-H29),(0))","v":{"$error":"#DIV/0!"}},0]
[null,{"$f":"'Eingabe aktuelle Daten'!B16","v":"Familienzentrum"},null,null,null,null,{"$f":"'Eingabe aktuelle Daten'!F16*'Eingabe aktuelle Daten'!C59/12","v":0}]
[null,{"$f":"'Eingabe aktuelle Daten'!B17","v":"Landezuschuss PlusKita und Sprachförderbedarf § 45"},null,null,null,{"$f":"'Eingabe aktuelle Daten'!F17:G17*'Eingabe aktuelle Daten'!C59/12","v":0},5]
[null,{"$f":"'Eingabe aktuelle Daten'!B18","v":"Landeszuschuss zur Qualifizierung § 46 Abs. 2 und 3"},null,null,null,{"$f":"('Eingabe aktuelle Daten'!F18)*'Eingabe aktuelle Daten'!C59/12","v":0},5]
[null,{"$f":"'Eingabe aktuelle Daten'!B19","v":"Landeszuschuss zur Fachberatung § 47 "},null,null,null,null,{"$f":"('Eingabe aktuelle Daten'!F19)*'Eingabe aktuelle Daten'!C59/12","v":0},5]
[null,{"$f":"'Eingabe aktuelle Daten'!B20","v":"Landeszuschuss zur Flexibilisierung § 48"},null,null,null,{"$f":"('Eingabe aktuelle Daten'!F20)*'Eingabe aktuelle Daten'!C59/12","v":0},{"$f":"(G42*1400+G44*1800+G45*2200)","v":20000}]
[null,"eingruppige Einrichtungen/Waldkindergarten",null,null,null,null,{"$f":"'Eingabe aktuelle Daten'!F21*'Eingabe aktuelle Daten'!C59/12","v":0}]
[null,"Kaltmiete nach Kürzung um Erhaltungspauschale",null,null,null,null,{"$f":"'Eingabe aktuelle Daten'!F22*'Eingabe aktuelle Daten'!C59/12","v":0}]
[null,"KiBiz-Zuschuss Auswertungszeitraum ingesamt",null,null,null,null,{"$f":"F36+F41+F42+G43+F44+F45+F47+G49+G46","v":{"$error":"#DIV/0!"}}]
[]
[null,"Anteil 92,2 %",null,null,null,null,{"$f":"(F35+F42+G49)*0.922+G43+F44+F45+F47+G46","v":{"$error":"#DIV/0!"}}]
[null,"Anteil 7,8 %",null,null,null,null,{"$f":"(F35+F42+G49)*0.078","v":{"$error":"#DIV/0!"}}]
[null,"Kontrollsumme",null,null,null,null,{"$f":"SUM(G52:G53)","v":{"$error":"#DIV/0!"}}]

{"sheet":"Personalbesetzung_Ist","index":5,"n_rows":51,"n_cols":16,"rows_kept":51,"cut":false,"hidden":false,"merged":[[19,15,20,15],[19,1,20,1],[8,4,8,5],[9,1,9,3],[9,4,9,5],[10,1,10,3],[10,4,10,5],[19,2,20,2]]}
[]
[]
[]
[]
[]
[]
[null,"Personalbesetzung IST"]
[]
[null,"Name der Einrichtung:",null,null,{"$f":"Eingabemaske!E14","v":0}]
[null,"Kindergartenjahr:",null,null,{"$f":"Eingabemaske!E16","v":"2022/23"}]
[null,"aktuelle Auswertungsmonate:",null,null,{"$f":"Ermittlung_Zuschuss_mindestbese!D11","v":0}]
[]
[]
[]
[]
[]
[null,"Übersicht pädagogische Mitarbeiter"]
[null," - Stunden je Monat -"]
[]
[null,"Name","Förderung",1,2,3,4,5,6,7,8,9,10,11,12,"ø"]
[null,null,null,"August","September","Oktober","November","Dezember","Januar","Februar","März","April","Mai","Juni","Juli"]
[null,null,null,null,null,null,null,null,null,null,null,null,null,null,null,{"$f":"SUM(D22:O22)/'Eingabe aktuelle Daten'!$C$59","v":{"$error":"#DIV/0!"}}]
[null,null,null,null,null,null,null,null,null,null,null,null,null,null,null,{"$f":"SUM(D23:O23)/'Eingabe aktuelle Daten'!$C$59","v":{"$error":"#DIV/0!"}}]
[null,null,null,null,null,null,null,null,null,null,null,null,null,null,null,{"$f":"SUM(D24:O24)/'Eingabe aktuelle Daten'!$C$59","v":{"$error":"#DIV/0!"}}]
[null,null,null,null,null,null,null,null,null,null,null,null,null,null,null,{"$f":"SUM(D25:O25)/'Eingabe aktuelle Daten'!$C$59","v":{"$error":"#DIV/0!"}}]
[null,null,null,null,null,null,null,null,null,null,null,null,null,null,null,{"$f":"SUM(D26:O26)/'Eingabe aktuelle Daten'!$C$59","v":{"$error":"#DIV/0!"}}]
[null,null,null,null,null,null,null,null,null,null,null,null,null,null,null,{"$f":"SUM(D27:O27)/'Eingabe aktuelle Daten'!$C$59","v":{"$error":"#DIV/0!"}}]
[null,null,null,null,null,null,null,null,null,null,null,null,null,null,null,{"$f":"SUM(D28:O28)/'Eingabe aktuelle Daten'!$C$59","v":{"$error":"#DIV/0!"}}]
[null,null,null,null,null,null,null,null,null,null,null,null,null,null,null,{"$f":"SUM(D29:O29)/'Eingabe aktuelle Daten'!$C$59","v":{"$error":"#DIV/0!"}}]
[null,null,null,null,null,null,null,null,null,null,null,null,null,null,null,{"$f":"SUM(D30:O30)/'Eingabe aktuelle Daten'!$C$59","v":{"$error":"#DIV/0!"}}]
[null,null,null,null,null,null,null,null,null,null,null,null,null,null,null,{"$f":"SUM(D31:O31)/'Eingabe aktuelle Daten'!$C$59","v":{"$error":"#DIV/0!"}}]
[null,null,null,null,null,null,null,null,null,null,null,null,null,null,null,{"$f":"SUM(D32:O32)/'Eingabe aktuelle Daten'!$C$59","v":{"$error":"#DIV/0!"}}]
[null,null,null,null,null,null,null,null,null,null,null,null,null,null,null,{"$f":"SUM(D33:O33)/'Eingabe aktuelle Daten'!$C$59","v":{"$error":"#DIV/0!"}}]
[null,null,null,null,null,null,null,null,null,null,null,null,null,null,null,{"$f":"SUM(D34:O34)/'Eingabe aktuelle Daten'!$C$59","v":{"$error":"#DIV/0!"}}]
[null,null,null,null,null,null,null,null,null,null,null,null,null,null,null,{"$f":"SUM(D35:O35)/'Eingabe aktuelle Daten'!$C$59","v":{"$error":"#DIV/0!"}}]
[null,null,null,null,null,null,null,null,null,null,null,null,null,null,null,{"$f":"SUM(D36:O36)/'Eingabe aktuelle Daten'!$C$59","v":{"$error":"#DIV/0!"}}]
[null,null,null,null,null,null,null,null,null,null,null,null,null,null,null,{"$f":"SUM(D37:O37)/'Eingabe aktuelle Daten'!$C$59","v":{"$error":"#DIV/0!"}}]
[null,null,null,null,null,null,null,null,null,null,null,null,null,null,null,{"$f":"SUM(D38:O38)/'Eingabe aktuelle Daten'!$C$59","v":{"$error":"#DIV/0!"}}]
[null,null,null,null,null,null,null,null,null,null,null,null,null,null,null,{"$f":"SUM(D39:O39)/'Eingabe aktuelle Daten'!$C$59","v":{"$error":"#DIV/0!"}}]
[null,null,null,null,null,null,null,null,null,null,null,null,null,null,null,{"$f":"SUM(D40:O40)/'Eingabe aktuelle Daten'!$C$59","v":{"$error":"#DIV/0!"}}]
[null,null,null,null,null,null,null,null,null,null,null,null,null,null,null,{"$f":"SUM(D41:O41)/'Eingabe aktuelle Daten'!$C$59","v":{"$error":"#DIV/0!"}}]
[null,null,null,null,null,null,null,null,null,null,null,null,null,null,null,{"$f":"SUM(D42:O42)/'Eingabe aktuelle Daten'!$C$59","v":{"$error":"#DIV/0!"}}]
[null,null,null,null,null,null,null,null,null,null,null,null,null,null,null,{"$f":"SUM(D43:O43)/'Eingabe aktuelle Daten'!$C$59","v":{"$error":"#DIV/0!"}}]
[null,null,null,null,null,null,null,null,null,null,null,null,null,null,null,{"$f":"SUM(D44:O44)/'Eingabe aktuelle Daten'!$C$59","v":{"$error":"#DIV/0!"}}]
[null,null,null,null,null,null,null,null,null,null,null,null,null,null,null,{"$f":"SUM(D45:O45)/'Eingabe aktuelle Daten'!$C$59","v":{"$error":"#DIV/0!"}}]
[null,null,null,null,null,null,null,null,null,null,null,null,null,null,null,{"$f":"SUM(D46:O46)/'Eingabe aktuelle Daten'!$C$59","v":{"$error":"#DIV/0!"}}]
[null,null,null,null,null,null,null,null,null,null,null,null,null,null,null,{"$f":"SUM(D47:O47)/'Eingabe aktuelle Daten'!$C$59","v":{"$error":"#DIV/0!"}}]
[null,null,null,null,null,null,null,null,null,null,null,null,null,null,null,{"$f":"SUM(D48:O48)/'Eingabe aktuelle Daten'!$C$59","v":{"$error":"#DIV/0!"}}]
[null,null,null,null,null,null,null,null,null,null,null,null,null,null,null,{"$f":"SUM(D49:O49)/'Eingabe aktuelle Daten'!$C$59","v":{"$error":"#DIV/0!"}}]
[null,"∑",null,{"$f":"SUM(D22:D49)","v":0},{"$f":"SUM(E22:E49)","v":0},0,0,0,0,0,0,0,0,0,0,{"$f":"SUM(P22:P49)","v":{"$error":"#DIV/0!"}}]
[null,"kumuliert",null,{"$f":"D50","v":0},{"$f":"D51+E50","v":0},{"$f":"E51+F50","v":0},0,0,0,0,0,0,0,0,0,{"$f":"HLOOKUP(E11,D20:O51,32,FALSE)","v":{"$error":"#N/A"}}]

{"sheet":"Daten GuV","index":6,"n_rows":32,"n_cols":6,"rows_kept":32,"cut":false,"hidden":false,"merged":[[7,1,7,2],[7,3,7,5],[13,5,13,6],[23,5,23,6],[14,5,14,6],[15,5,15,6],[8,1,8,2],[8,3,8,5],[9,1,9,2],[9,3,9,5],[16,5,16,6],[19,5,19,6],[20,5,20,6],[24,5,24,6],[32,5,32,6],[25,5,25,6],[26,5,26,6],[27,5,27,6],[30,5,30,6],[28,5,28,6],[29,5,29,6],[31,5,31,6]]}
[]
[]
[]
[]
[]
[null,"Daten GuV"]
[]
[null,"Name der Einrichtung:",null,{"$f":"Eingabemaske!E14","v":0}]
[null,"Kindergartenjahr:",null,{"$f":"Eingabemaske!E16","v":"2022/23"}]
[null,"aktuelle Auswertungsmonate:",null,{"$f":"Ermittlung_Zuschuss_mindestbese!D11","v":0}]
[]
[]
[]
[null,"Erträge",null,null,null," - Erläuterung -"]
[]
[null,null,"sonstige Erträge"]
[]
[]
[]
[null,null,"Summe Erträge",{"$f":"SUM(D16:D17)","v":0}]
[]
[]
[]
[null,"Aufwendungen",null,null,null," - Erläuterung -"]
[]
[null,null,"Personalkosten inkl. Nebenkosten"]
[null,null,"Sachkosten"]
[null,null,"Investitionsaufwendungen"]
[null,null,"Verwaltungsaufwand"]
[null,null,"Kaltmiete"]
[]
[null,null,"Summe Aufwendungen",{"$f":"SUM(D26:D30)","v":0}]

{"sheet":"Auswertung","index":7,"n_rows":42,"n_cols":10,"rows_kept":42,"cut":false,"hidden":false,"merged":[[25,2,25,7],[38,3,38,7],[33,2,33,7]]}
[]
[]
[]
[]
[]
[]
[null,null,"Auswertung Kindertageseinrichtung"]
[]
[]
[null,null,null,"Name der Einrichtung:",{"$f":"Eingabemaske!E14","v":0}]
[null,null,null,"Kindergartenjahr:",{"$f":"'Eingabe aktuelle Daten'!D10","v":"2022/23"}]
[null,null,null,"Auswertungszeitraum in Monaten:",{"$f":"'Eingabe aktuelle Daten'!C59","v":0}]
[]
[]
[]
[null,null,"Erträge",null,null,null,"Aufwendungen"]
[]
[null,null,null,"KiBiz-Zuschuss",{"$f":"Ermittlung_Zuschuss_mindestbese!G54","v":{"$error":"#DIV/0!"}},null,null,"Personalkosten inkl. Nebenkosten",{"$f":"'Daten GuV'!D26","v":0}]
[null,null,null,"LWL",{"$f":"'Eingabe aktuelle Daten'!AB102","v":0},null,null,"Sachkosten",{"$f":"'Daten GuV'!D27","v":0}]
[null,null,null,"sonstige Erträge",{"$f":"'Daten GuV'!D16","v":0},null,null,"Investitionsaufwendungen",{"$f":"'Daten GuV'!D28","v":0}]
[null,null,null,null,null,null,null,"Verwaltungsaufwand",{"$f":"'Daten GuV'!D29","v":0}]
[null,null,null,null,null,null,null,"Kaltmiete",{"$f":"'Daten GuV'!D30","v":0}]
[]
[null,null,null,"Zwischensumme Erträge",{"$f":"SUM(E18:E20)","v":{"$error":"#DIV/0!"}},null,null,"Zwischensumme Aufwendungen",{"$f":"SUM(I18:I22)","v":0}]
[]
[null,null,"E R G E B N I S",null,null,null,null,null,{"$f":"E24-I24","v":{"$error":"#DIV/0!"}}]
[]
[null,null,"Personal"]
[]
[null,null,null,"Personalbesetzung Ist",{"$f":"Personalbesetzung_Ist!P50","v":{"$error":"#DIV/0!"}},"Std.",null,"Personalbesetzung Soll neues KiBiz",{"$f":"Ermittlung_Zuschuss_mindestbese!I29+Ermittlung_Zuschuss_mindestbese!J29","v":{"$error":"#DIV/0!"}},"Std."]
[null,null,null,null,null,null,null,"Persobesetz. Soll Landesmittel",{"$f":"('Eingabe aktuelle Daten'!F17/1500)+('Eingabe aktuelle Daten'!F20/1500)","v":0},"Std."]
[null,null,null,null,null,null,null,"Personalbesetzung Soll LWL",{"$f":"'Eingabe aktuelle Daten'!AB81","v":{"$error":"#DIV/0!"}},"Std."]
[]
[null,null,"Ü B E R- / U N T E R B E S E T Z U N G   Ist/Soll KiBiz  + Soll Landesmittel + Soll LWL",null,null,null,null,"Ü b e r- / U n t e r b e s e t z u n g:",{"$f":"E30-I30-I31-I32","v":{"$error":"#DIV/0!"}}]
[]
[]
[null,null,"Anmerkungen:"]
[]
[null,null,null,"das oben aufgeführte Ergebnis wurde durch die Planungsgarantie in nachfolgender Höhe positiv beeinflusst:",null,null,null,null,{"$f":"Ermittlung_Zuschuss_mindestbese!F42","v":{"$error":"#DIV/0!"}}]
[]
[null,null,null,"Sonstige Anmerkungen:"]
[null,null,null,"KiBiz-Rücklage Stand 31.07.2022"]

{"sheet":"Auswahl","index":8,"n_rows":29,"n_cols":13,"rows_kept":29,"cut":false,"hidden":true,"merged":[]}
[]
[null,null,"Jahr:",null,null,null,"Pauschalen:","2014/2015","2015/2016","2016/2017","2017/2018","2018/2019","2019/2020"]
[1,null,"2015/2016",null,null,null,"a : 20 Kinder",4689.45,4759.79,4902.58,5049.66,5201.1499999999996,5357.18]
[2,null,"2016/2017",null,null,null,"b : 20 Kinder",6283.69,6377.95,6569.29,6766.37,6969.36,7178.44]
[3,null,"2017/2018",null,null,null,"c : 20 Kinder",8058.41,8179.29,8424.67,8677.41,8937.73,9205.86]
[4,null,"2018/2019"]
[5,null,"2019/2020",null,null,null,"a : 10 Kinder",9667.89,9812.91,10107.299999999999,10410.52,10722.84,11044.53]
[6,null,"2020/2021",null,null,null,"b : 10 Kinder",12971.95,13166.53,13561.53,13968.38,14387.43,14819.05]
[7,null,"2021/2022",null,null,null,"c : 10 Kinder",16636.96,16886.509999999998,17393.11,17914.900000000001,18452.349999999999,19005.919999999998]
[8]
[9,null,null,null,null,null,"a : 25 Kinder",3461.01,3512.93,3618.32,3726.87,3838.68,3953.84]
[10,null,null,null,null,null,"b : 25 Kinder",4620.2,4689.5,4830.1899999999996,4975.1000000000004,5124.3500000000004,5278.08]
[11,null,null,null,null,null,"c : 20 Kinder",7404.64,7515.71,7741.18,7973.42,8212.6200000000008,8459]
[12]
[]
[null,null,null,null,null,null,"behinderte Kinder"]
[null,null,null,null,null,null,"Pauschalen:","2014/2015","2015/2016","2016/2017","2017/2018","2018/2019","2019/2020"]
[null,null,null,null,null,null,"a : 20 Kinder",16170.7,16413.25,16905.669999999998,17412.849999999999,17935.23,18473.28]
[null,null,null,null,null,null,"b : 20 Kinder",16170.7,16413.25,16905.669999999998,17412.849999999999,17935.23,18473.28]
[null,null,null,null,null,null,"c : 20 Kinder",16170.7,16413.25,16905.669999999998,17412.849999999999,17935.23,18473.28]
[]
[null,null,null,null,null,null,"a : 10 Kinder",16170.7,16413.25,16905.669999999998,17412.849999999999,17935.23,18473.28]
[null,null,null,null,null,null,"b : 10 Kinder",16170.7,16413.25,16905.669999999998,17412.849999999999,17935.23,18473.28]
[null,null,null,null,null,null,"c : 10 Kinder",18636.96,18886.509999999998,19393.11,19914.900000000001,20452.349999999999,21005.919999999998]
[]
[null,null,null,null,null,null,"a : 25 Kinder",16170.7,16413.25,16905.669999999998,17412.849999999999,17935.23,18473.28]
[null,null,null,null,null,null,"b : 25 Kinder",16170.7,16413.25,16905.669999999998,17412.849999999999,17935.23,18473.28]
[null,null,null,null,null,null,"c : 20 Kinder",16170.7,16413.25,16905.669999999998,17412.849999999999,17935.23,18473.28]
[null,null,null,null,null,null,null,null,null,null,null,null,"^^"]